fUST/lending_fUST_20260610
["ID","MTS","AMOUNT","RATE_DAILY","PERIOD"]
[424713337,1781081448000,-1615.65620141,0.00019178,2]
[424713344,1781081448000,-682.74,0.00019178,2]
[424713345,1781081448000,-500.0,0.00019178,2]
[424713343,1781081448000,-1440.72,0.00019178,2]
[424713346,1781081448000,-500.0,0.00019178,2]
[424713329,1781081448000,-1139.4,0.00019178,2]
[424713378,1781081459000,152.0,0.00020298,30]
[424713379,1781081619000,225.0,0.00020267,120]
[424713380,1781081668000,210.0,0.00020267,120]
[424713381,1781081711000,1465.0,0.0002026,30]
[424713382,1781081714000,175.0,0.00020267,120]
[424713383,1781081716000,175.0,0.00021267,120]
[424713385,1781081723000,-5000.0,0.00016607,2]
[424713384,1781081723000,-5000.0,0.00016441,2]
[424713386,1781081727000,-166.53962631,0.00016775,2]
[424713398,1781081738000,-300.0,0.00017109,2]
[424713393,1781081738000,-300.0,0.00017109,2]
[424713395,1781081738000,-300.0,0.00017109,2]
[424713396,1781081738000,-300.0,0.00017109,2]
[424713394,1781081738000,-300.0,0.00017109,2]
[424713397,1781081738000,-300.0,0.00017109,2]
[424713399,1781081738000,-300.0,0.00017109,2]
[424713401,1781081738000,-300.0,0.00017109,2]
[424713392,1781081738000,-300.0,0.00017109,2]
[424713402,1781081738000,-300.0,0.00017109,2]
[424713400,1781081738000,-300.0,0.00017109,2]
[424713407,1781081738000,-500.0,0.0001769,2]
[424713409,1781081738000,-353.84960746,0.0001769,2]
[424713408,1781081738000,-500.0,0.0001769,2]
[424713403,1781081738000,-300.0,0.00017109,2]
[424713405,1781081738000,-300.0,0.00017109,2]
[424713404,1781081738000,-300.0,0.00017109,2]
[424713406,1781081738000,-300.0,0.00017109,2]
[424713410,1781081739000,4146.15039254,0.00017913,2]
[424713411,1781081745000,-1211.73014446,0.00017913,2]
[424713412,1781081759000,152.0,0.00020298,30]
[424713422,1781082111000,-152.0,0.00017073,7]
[424713423,1781082128000,-152.0,0.00017073,7]
[424713424,1781082144000,-4276.8724628,0.00017952,2]
[424713425,1781082161000,-156.0,0.00018028,2]
[424713427,1781082347000,152.0,0.00020306,30]
[424713430,1781082486000,215.31,9.2e-05,2]
[424713429,1781082486000,215.3,9.2e-05,2]
[424713481,1781082638000,-169.74218606,0.00017073,7]
[424713483,1781082638000,-234.547881,0.00017336,2]
[424713479,1781082638000,-152.0,0.00017051,7]
[424713480,1781082638000,-152.0,0.00017073,7]
[424713482,1781082638000,-325.87104844,0.00017073,7]
[424713489,1781082638000,-589.93003705,0.00017843,2]
[424713486,1781082638000,-156.58,0.00017754,2]
[424713490,1781082638000,-156.58,0.00017854,2]
[424713499,1781082638000,-156.58,0.00018454,2]
[424713497,1781082638000,-156.58,0.00018254,2]
[424713487,1781082638000,-479.42762176,0.00017843,2]
[424713494,1781082638000,-1727.41472811,0.00018054,2]
[424713488,1781082638000,-2803.83360489,0.00017843,2]
[424713501,1781082638000,-220.961,0.00018496,2]
[424713493,1781082638000,-156.58,0.00018054,2]
[424713492,1781082638000,-199.1538993,0.00018008,2]
[424713491,1781082638000,-156.58,0.00017954,2]
[424713500,1781082638000,-156.018,0.00018496,2]
[424713484,1781082638000,-156.58,0.00017554,2]
[424713498,1781082638000,-156.58,0.00018354,2]
[424713495,1781082638000,-156.58,0.00018154,2]
[424713496,1781082638000,-286.00126666,0.00018219,2]
[424713485,1781082638000,-156.58,0.00017654,2]
[424713518,1781082639000,-4457.46627172,0.00018898,2]
[424713502,1781082639000,-232.959,0.00018496,2]
[424713504,1781082639000,-250.0,0.00018496,2]
[424713505,1781082639000,-156.58,0.00018554,2]
[424713503,1781082639000,-150.93,0.00018496,2]
[424713506,1781082639000,-186.0,0.00018568,2]
[424713513,1781082639000,-280.76,0.00018859,2]
[424713515,1781082639000,-3845.4703632,0.00018898,2]
[424713517,1781082639000,-8246.18349024,0.00018898,2]
[424713507,1781082639000,-156.58,0.00018654,2]
[424713516,1781082639000,-1153325.98726733,0.00018898,2]
[424713514,1781082639000,-336.40100175,0.00018897,2]
[424713512,1781082639000,-500.0,0.00018859,2]
[424713510,1781082639000,-1298.25820687,0.000188,2]
[424713508,1781082639000,-1298.25820687,0.000187,2]
[424713511,1781082639000,-156.58,0.00018854,2]
[424713509,1781082639000,-156.58,0.00018754,2]
[424713543,1781082641000,-7114.47732637,0.00018898,2]
[424713548,1781082643000,-687.37060269,0.00018898,2]
[424713549,1781082643000,-628.1247688,0.00018898,2]
[424713552,1781082643000,-12623.34108908,0.00018898,2]
[424713550,1781082643000,-3576.91254535,0.00018898,2]
[424713554,1781082643000,-766.0873,0.00018898,2]
[424713551,1781082643000,-22291.35696604,0.00018898,2]
[424713553,1781082643000,-34027.94280443,0.00018898,2]
[424713563,1781082646000,-29107.67765022,0.00018898,2]
[424713562,1781082646000,-77848.71853452,0.00018898,2]
[424713561,1781082646000,-13270.57507934,0.00018898,2]
[424713564,1781082952000,152.0,0.00020307,30]
[424713568,1781083328000,9387.94322052,7.6e-05,2]
[424713567,1781083328000,7498.75949739,7.6e-05,2]
[424713569,1781083343000,500.0,0.00020289,120]
[424713570,1781083600000,11314.124826,0.00020289,120]
[424713571,1781083828000,-1056.90563718,0.00010336,2]
[424713575,1781083832000,-1950.63721025,0.0001044,2]
[424713574,1781083832000,-3943.09436282,0.00010336,2]
[424713576,1781083832000,-3049.36278975,0.0001044,2]
[424713578,1781083832000,-500.0,0.00011497,2]
[424713581,1781083832000,-1397.18743861,0.00011497,2]
[424713580,1781083832000,-473.43559959,0.00011497,2]
[424713579,1781083832000,-1747.31266676,0.00011497,2]
[424713582,1781083832000,-305.668248,0.00011497,2]
[424713577,1781083832000,-198.8618904,0.00010546,2]
[424713583,1781083833000,-44.45698015,0.00011497,2]
[424713584,1781083833000,-1412.2645621,0.00011497,2]
[424713623,1781083838000,-551.21027201,0.00011496,2]
[424713620,1781083838000,-5000.0,0.00011381,2]
[424713621,1781083838000,-500.0,0.00011496,2]
[424713622,1781083838000,-500.61635798,0.00011496,2]
[424713625,1781083838000,-235.5764819,0.00011496,2]
[424713626,1781083838000,-264.4235181,0.00011496,2]
[424713627,1781083838000,-500.84930981,0.00011496,2]
[424713628,1781083838000,-500.0,0.00011496,2]
[424713629,1781083838000,-500.0,0.00011496,2]
[424713631,1781083838000,-500.0,0.00011496,2]
[424713630,1781083838000,-470.04656491,0.00011496,2]
[424713624,1781083838000,-500.0,0.00011496,2]
[424713654,1781083839000,-500.0,0.00011496,2]
[424713652,1781083839000,-500.0,0.00011496,2]
[424713653,1781083839000,-500.0,0.00011496,2]
[424713655,1781083839000,-500.0,0.00011496,2]
[424713656,1781083839000,-500.0,0.00011496,2]
[424713663,1781083839000,-258.99694606,0.00011496,2]
[424713662,1781083839000,-500.0,0.00011496,2]
[424713658,1781083839000,-500.0,0.00011496,2]
[424713661,1781083839000,-500.0,0.00011496,2]
[424713657,1781083839000,-500.0,0.00011496,2]
[424713660,1781083839000,-500.0,0.00011496,2]
[424713665,1781083839000,-500.0,0.00011496,2]
[424713666,1781083839000,-500.0,0.00011496,2]
[424713651,1781083839000,-500.0,0.00011496,2]
[424713659,1781083839000,-500.0,0.00011496,2]
[424713650,1781083839000,-500.0,0.00011496,2]
[424713641,1781083839000,-500.0,0.00011496,2]
[424713648,1781083839000,-500.0,0.00011496,2]
[424713664,1781083839000,-500.0,0.00011496,2]
[424713639,1781083839000,-500.0,0.00011496,2]
[424713640,1781083839000,-500.0,0.00011496,2]
[424713632,1781083839000,-500.0,0.00011496,2]
[424713633,1781083839000,-500.0,0.00011496,2]
[424713636,1781083839000,-500.0,0.00011496,2]
[424713635,1781083839000,-500.0,0.00011496,2]
[424713637,1781083839000,-500.0,0.00011496,2]
[424713638,1781083839000,-500.0,0.00011496,2]
[424713634,1781083839000,-500.0,0.00011496,2]
[424713646,1781083839000,-500.0,0.00011496,2]
[424713643,1781083839000,-500.0,0.00011496,2]
[424713644,1781083839000,-500.0,0.00011496,2]
[424713645,1781083839000,-500.0,0.00011496,2]
[424713647,1781083839000,-500.0,0.00011496,2]
[424713649,1781083839000,-500.0,0.00011496,2]
[424713642,1781083839000,-500.0,0.00011496,2]
[424713667,1781083839000,-564.63291198,0.00011496,2]
[424713668,1781083839000,-500.0,0.00011496,2]
[424713690,1781083839000,-1747.31266676,0.00011497,2]
[424713691,1781083839000,-1747.31266676,0.00011497,2]
[424713693,1781083839000,-1747.31266676,0.00011497,2]
[424713692,1781083839000,-1747.31266676,0.00011497,2]
[424713698,1781083839000,-937.59639822,0.00011497,2]
[424713694,1781083839000,-1747.31266676,0.00011497,2]
[424713689,1781083839000,-1747.31266676,0.00011497,2]
[424713699,1781083839000,-191.7943514,0.00011497,2]
[424713697,1781083839000,-809.71626854,0.00011497,2]
[424713696,1781083839000,-1747.31266676,0.00011497,2]
[424713701,1781083839000,-12617.64912611,0.000115,2]
[424713700,1781083839000,-1555.51831536,0.00011497,2]
[424713702,1781083839000,-9076.59232502,0.000115,2]
[424713669,1781083839000,-500.0,0.00011496,2]
[424713695,1781083839000,-1747.31266676,0.00011497,2]
[424713687,1781083839000,-1747.31266676,0.00011497,2]
[424713688,1781083839000,-1747.31266676,0.00011497,2]
[424713684,1781083839000,-1747.31266676,0.00011497,2]
[424713671,1781083839000,-500.0,0.00011496,2]
[424713670,1781083839000,-500.0,0.00011496,2]
[424713676,1781083839000,-500.0,0.00011496,2]
[424713674,1781083839000,-500.0,0.00011496,2]
[424713673,1781083839000,-500.0,0.00011496,2]
[424713678,1781083839000,-500.0,0.00011496,2]
[424713686,1781083839000,-1747.31266676,0.00011497,2]
[424713672,1781083839000,-500.0,0.00011496,2]
[424713675,1781083839000,-500.0,0.00011496,2]
[424713679,1781083839000,-500.0,0.00011496,2]
[424713682,1781083839000,-500.0,0.00011496,2]
[424713681,1781083839000,-500.0,0.00011496,2]
[424713685,1781083839000,-1747.31266676,0.00011497,2]
[424713683,1781083839000,-335.04810466,0.00011497,2]
[424713680,1781083839000,-500.0,0.00011496,2]
[424713677,1781083839000,-500.0,0.00011496,2]
[424713750,1781083842000,-300.0,0.00011728,2]
[424713745,1781083842000,-1056.90563718,0.000115,2]
[424713747,1781083842000,-425.851556,0.00011686,2]
[424713746,1781083842000,-1736.06861324,0.000115,2]
[424713748,1781083842000,-300.0,0.00011728,2]
[424713754,1781083842000,-300.0,0.00011728,2]
[424713751,1781083842000,-300.0,0.00011728,2]
[424713752,1781083842000,-300.0,0.00011728,2]
[424713753,1781083842000,-300.0,0.00011728,2]
[424713755,1781083842000,-300.0,0.00011728,2]
[424713756,1781083842000,-292.09443437,0.00011728,2]
[424713749,1781083842000,-300.0,0.00011728,2]
[424713765,1781083843000,-300.0,0.00011728,2]
[424713763,1781083843000,-7.90556563,0.00011728,2]
[424713768,1781083843000,-300.0,0.00011728,2]
[424713764,1781083843000,-300.0,0.00011728,2]
[424713766,1781083843000,-127.57586688,0.00011728,2]
[424713767,1781083843000,-172.42413312,0.00011728,2]
[424713770,1781083843000,-300.0,0.00011728,2]
[424713769,1781083843000,-300.0,0.00011728,2]
[424713771,1781083843000,-600.0,0.00011728,2]
[424713773,1781083843000,-454.56774607,0.00012045,2]
[424713776,1781083843000,-512.67313995,0.00012319,2]
[424713775,1781083843000,-425.851556,0.00012178,2]
[424713774,1781083843000,-45.43225393,0.00012045,2]
[424713778,1781083843000,-720.0,0.00012901,2]
[424713777,1781083843000,-425.851556,0.0001267,2]
[424713779,1781083843000,-425.851556,0.00013162,2]
[424713772,1781083843000,-500.0,0.00011771,2]
[424713781,1781083844000,-1000.0,0.00013699,2]
[424713780,1781083844000,-425.851556,0.00013654,2]
[424713782,1781083844000,-152.42673536,0.00014146,2]
[424713783,1781083844000,-273.42482064,0.00014146,2]
[424713786,1781083844000,-1000.0,0.0001561,2]
[424713784,1781083844000,-864.0,0.00014191,2]
[424713787,1781083844000,-178.69,0.00016438,2]
[424713788,1781083844000,-4276.8724628,0.00016529,2]
[424713791,1781083844000,-1511.08307521,0.00016838,2]
[424713790,1781083844000,-224.608,0.00016637,2]
[424713789,1781083844000,-172.95826501,0.00016537,2]
[424713785,1781083844000,-2179.39581437,0.00015,2]
[424713809,1781083846000,-304.11739915,0.00016838,2]
[424713807,1781083846000,-3488.91692479,0.00016838,2]
[424713808,1781083846000,-5000.0,0.00016838,2]
[424713810,1781083847000,-4695.88260085,0.00016838,2]
[424713812,1781083847000,-10203.98974927,0.00017,2]
[424713820,1781083847000,-586.18690288,0.00017308,2]
[424713814,1781083847000,-152.0,0.00017061,7]
[424713813,1781083847000,-152.0,0.00017061,7]
[424713815,1781083847000,-219.18375174,0.00017073,7]
[424713816,1781083847000,-1000.0,0.00017171,2]
[424713826,1781083847000,-296.95155179,0.00018276,2]
[424713817,1781083847000,-244.0,0.00017171,2]
[424713818,1781083847000,-260.1028492,0.0001727,2]
[424713827,1781083847000,-29851.70624119,0.00018498,2]
[424713825,1781083847000,-168.39137568,0.00018219,2]
[424713824,1781083847000,-172.24846692,0.00017553,2]
[424713811,1781083847000,-7345.29055356,0.00017,2]
[424713823,1781083847000,-676.3660362,0.00017308,2]
[424713821,1781083847000,-376.13504404,0.00017308,2]
[424713819,1781083847000,-325.98537586,0.00017308,2]
[424713828,1781084068000,-336.88679517,0.00011268,2]
[424713829,1781084073000,-451.39504865,0.00011155,2]
[424713830,1781084073000,-632.94354223,0.00011268,2]
[424713831,1781084075000,-456.27,0.00011268,2]
[424713832,1781084078000,-686.4799977,0.00011268,2]
[424713833,1781084082000,-720.75504863,0.00011268,2]
[424713834,1781084098000,-218.51663288,0.00011268,2]
[424713835,1781084101000,-152.0,0.00011268,2]
[424713836,1781084106000,-167.42108723,0.00011268,2]
[424713837,1781084108000,-235.67396955,0.00011268,2]
[424713838,1781084116000,374.03,5e-05,2]
[424713839,1781084118000,-302.26375056,0.00011268,2]
[424713840,1781084122000,-549.9041487,0.00011268,2]
[424713841,1781084142000,-300.0,0.00011268,2]
[424713842,1781084146000,-184.82456274,0.00011268,2]
[424713844,1781084307000,-537.93772011,0.00011609,2]
[424713845,1781084310000,-199.53298916,0.00011609,2]
[424713846,1781084311000,-379.55145973,0.00011609,2]
[424713847,1781084313000,-271.8617283,0.00011609,2]
[424713848,1781084316000,-537.93772011,0.00011609,2]
[424713849,1781084320000,-537.93772011,0.00011609,2]
[424713850,1781084337000,-284.84212696,0.00011609,2]
[424713851,1781084339000,-295.46297999,0.00011609,2]
[424715954,1781084952000,-615.908,0.00011609,2]
[424715962,1781085031000,-1072.6453552,0.00011493,2]
[424715961,1781085031000,-379.30198198,0.00011493,2]
[424715963,1781085031000,-763.77151649,0.00011493,2]
[424715965,1781085031000,-97.08324616,0.00011726,2]
[424715964,1781085031000,-2784.28114633,0.00011493,2]
[424716298,1781085038000,-600.0,0.00017339,2]
[424716290,1781085038000,-202.91675384,0.00011726,2]
[424716292,1781085038000,-118.07559816,0.00013698,2]
[424716291,1781085038000,-500.0,0.00013698,2]
[424716294,1781085038000,-518.20445619,0.00013698,2]
[424716293,1781085038000,-381.92440184,0.00013698,2]
[424716296,1781085038000,-299.47155604,0.00017308,2]
[424716295,1781085038000,-152.0,0.00017084,7]
[424716300,1781085038000,-154.62,0.00018005,3]
[424716297,1781085038000,-446.15040119,0.00017308,2]
[424716301,1781085038000,-500.0,0.00018296,2]
[424716299,1781085038000,-1000.0,0.0001746,2]
[424716306,1781085038000,-951.01063195,0.000186,2]
[424716309,1781085038000,-340.61076144,0.00018794,2]
[424716307,1781085038000,-87.59593354,0.000186,2]
[424716308,1781085038000,-152.25570164,0.00018695,2]
[424716305,1781085038000,-186.0,0.00018587,2]
[424716304,1781085038000,-160.0,0.00018554,2]
[424716302,1781085038000,-500.0,0.00018296,2]
[424716303,1781085038000,-544.31661297,0.00018296,2]
[424716357,1781085040000,-182.20433099,0.00018794,2]
[424716356,1781085040000,-1201.81183102,0.00018794,2]
[424716753,1781085046000,-1542.42259246,0.00018794,2]
[424716752,1781085046000,-295.33149874,0.00018794,2]
[424716754,1781085046000,-1542.42259246,0.00018794,2]
[424716756,1781085046000,-1542.42259246,0.00018794,2]
[424716755,1781085046000,-1542.42259246,0.00018794,2]
[424716757,1781085046000,-1542.42259246,0.00018794,2]
[424716761,1781085046000,-500.0,0.00018794,2]
[424716758,1781085046000,-1542.42259246,0.00018794,2]
[424716763,1781085046000,-1542.42259246,0.00018794,2]
[424716760,1781085046000,-1542.42259246,0.00018794,2]
[424716764,1781085046000,-500.0,0.00018794,2]
[424716762,1781085046000,-500.0,0.00018794,2]
[424716765,1781085046000,-197.86516912,0.00018794,2]
[424716759,1781085046000,-1542.42259246,0.00018794,2]
[424716766,1781085065000,152.0,0.00020346,30]
[424716772,1781085466000,238.02677948,7.6e-05,2]
[424716775,1781085466000,1879.90875862,7.6e-05,2]
[424716774,1781085466000,10000.0,7.6e-05,2]
[424716773,1781085466000,10000.0,7.6e-05,2]
[424716776,1781085535000,14993.45384309,0.00020285,120]
[424716777,1781085730000,-4196.3203551,0.00016014,2]
[424716833,1781086238000,-180.07,0.00016339,2]
[424716835,1781086238000,-3982.5719754,0.00016504,2]
[424716838,1781086238000,-500.0,0.00016663,2]
[424716840,1781086238000,-192.56437482,0.00016663,2]
[424716843,1781086238000,-300.0,0.00016665,2]
[424716842,1781086238000,-573.41663753,0.00016663,2]
[424716839,1781086238000,-500.0,0.00016663,2]
[424716848,1781086238000,-300.0,0.00016665,2]
[424716844,1781086238000,-300.0,0.00016665,2]
[424716847,1781086238000,-300.0,0.00016665,2]
[424716845,1781086238000,-300.0,0.00016665,2]
[424716846,1781086238000,-300.0,0.00016665,2]
[424716836,1781086238000,-500.0,0.00016663,2]
[424716841,1781086238000,-500.0,0.00016663,2]
[424716837,1781086238000,-500.0,0.00016663,2]
[424716820,1781086238000,-174.47682114,0.00015627,2]
[424716832,1781086238000,-175.49703954,0.00016227,2]
[424716831,1781086238000,-150.11138926,0.00016227,2]
[424716827,1781086238000,-156.58765989,0.00016127,2]
[424716829,1781086238000,-161.90586272,0.00016127,2]
[424716830,1781086238000,-167.16340423,0.00016127,2]
[424716826,1781086238000,-429.40360961,0.00016032,2]
[424716828,1781086238000,-177.40071979,0.00016127,2]
[424716825,1781086238000,-205.10642028,0.00015927,2]
[424716824,1781086238000,-199.52668349,0.00015927,2]
[424716821,1781086238000,-183.95896047,0.00015627,2]
[424716823,1781086238000,-155.11554805,0.00015927,2]
[424716818,1781086238000,-5000.0,0.00015383,2]
[424716819,1781086238000,-541.87598124,0.00015538,2]
[424716849,1781086238000,-300.0,0.00016665,2]
[424716834,1781086238000,-180.0,0.00016339,2]
[424716850,1781086238000,-300.0,0.00016665,2]
[424716822,1781086238000,-178.0501986,0.00015627,2]
[424716852,1781086238000,-300.0,0.00016665,2]
[424716851,1781086238000,-300.0,0.00016665,2]
[424716881,1781086238000,-1507.14057097,0.00018489,2]
[424716882,1781086238000,-72032.76916339,0.00018492,2]
[424716880,1781086238000,-1507.14057097,0.00018489,2]
[424716876,1781086238000,-1507.14057097,0.00018489,2]
[424716883,1781086238000,-1542806.41426921,0.00018492,2]
[424716875,1781086238000,-1507.14057097,0.00018489,2]
[424716878,1781086238000,-1507.14057097,0.00018489,2]
[424716877,1781086238000,-1507.14057097,0.00018489,2]
[424716872,1781086238000,-1507.14057097,0.00018489,2]
[424716874,1781086238000,-1507.14057097,0.00018489,2]
[424716870,1781086238000,-1507.14057097,0.00018489,2]
[424716873,1781086238000,-1507.14057097,0.00018489,2]
[424716871,1781086238000,-1507.14057097,0.00018489,2]
[424716869,1781086238000,-1507.14057097,0.00018489,2]
[424716879,1781086238000,-1507.14057097,0.00018489,2]
[424716867,1781086238000,-1507.14057097,0.00018489,2]
[424716855,1781086238000,-300.0,0.00016665,2]
[424716868,1781086238000,-384.39798295,0.00018489,2]
[424716856,1781086238000,-300.0,0.00016665,2]
[424716854,1781086238000,-300.0,0.00016665,2]
[424716858,1781086238000,-1000.0,0.00016811,2]
[424716857,1781086238000,-300.0,0.00016665,2]
[424716859,1781086238000,-182.58631288,0.00016962,2]
[424716853,1781086238000,-300.0,0.00016665,2]
[424716860,1781086238000,-600.0,0.00016997,2]
[424716864,1781086238000,-152.0,0.0001784,2]
[424716861,1781086238000,-152.0,0.00017073,7]
[424716865,1781086238000,-153.0210639,0.00018401,2]
[424716863,1781086238000,-296.95155179,0.00017761,2]
[424716862,1781086238000,-152.0,0.00017073,7]
[424716866,1781086238000,-223.74192463,0.00018481,2]
[424716975,1781086240000,-267.77939956,0.00018492,2]
[424717235,1781086243000,-9999.89834253,0.00018492,2]
[424717282,1781086246000,-500.0,0.00019178,2]
[424717275,1781086246000,-581.87,0.00019178,2]
[424717274,1781086246000,-1243.3265,0.00019178,2]
[424717270,1781086246000,-515.32973228,0.00019036,2]
[424717272,1781086246000,-1869.49181788,0.000191,2]
[424717277,1781086246000,-556.85,0.00019178,2]
[424717269,1781086246000,-236.32540522,0.00018956,2]
[424717271,1781086246000,-156.58,0.00019054,2]
[424717279,1781086246000,-500.0,0.00019178,2]
[424717295,1781086246000,-500.0,0.00019178,2]
[424717281,1781086246000,-265.98631011,0.00019178,2]
[424717286,1781086246000,-279.62113522,0.00019178,2]
[424717288,1781086246000,-500.0,0.00019178,2]
[424717292,1781086246000,-500.0,0.00019178,2]
[424717290,1781086246000,-500.0,0.00019178,2]
[424717293,1781086246000,-500.0,0.00019178,2]
[424717306,1781086246000,-500.0,0.00019178,2]
[424717268,1781086246000,-156.58,0.00018954,2]
[424717273,1781086246000,-156.58,0.00019154,2]
[424717267,1781086246000,-1869.49181788,0.000189,2]
[424717239,1781086246000,-1869.49181788,0.000185,2]
[424717265,1781086246000,-286.29429571,0.00018794,2]
[424717237,1781086246000,-12847.57704088,0.00018492,2]
[424717238,1781086246000,-98466.18073766,0.00018492,2]
[424717240,1781086246000,-825.0,0.00018509,2]
[424717241,1781086246000,-179.686,0.00018549,2]
[424717297,1781086246000,-500.0,0.00019178,2]
[424717242,1781086246000,-417.15472785,0.00018549,2]
[424717244,1781086246000,-500.0,0.00018593,2]
[424717245,1781086246000,-150.0,0.00018617,2]
[424717243,1781086246000,-500.0,0.00018593,2]
[424717249,1781086246000,-1838.0,0.00018617,2]
[424717251,1781086246000,-1416.0,0.00018617,2]
[424717252,1781086246000,-2208.0,0.00018617,2]
[424717247,1781086246000,-150.0,0.00018617,2]
[424717253,1781086246000,-1105.3416181,0.00018632,2]
[424717255,1781086246000,-745.653,0.0001864,2]
[424717259,1781086246000,-444.0,0.0001864,2]
[424717257,1781086246000,-188.08,0.0001864,2]
[424717260,1781086246000,-286173.56213806,0.00018693,2]
[424717264,1781086246000,-1869.49181788,0.000187,2]
[424717262,1781086246000,-720.0,0.00018697,2]
[424717299,1781086246000,-500.0,0.00019178,2]
[424717284,1781086246000,-500.0,0.00019178,2]
[424717304,1781086246000,-500.0,0.00019178,2]
[424717349,1781086246000,-500.0,0.00019178,2]
[424717354,1781086246000,-500.0,0.00019178,2]
[424717352,1781086246000,-229.71630893,0.00019178,2]
[424717351,1781086246000,-500.0,0.00019178,2]
[424717361,1781086246000,-500.0,0.00019178,2]
[424717358,1781086246000,-500.0,0.00019178,2]
[424717363,1781086246000,-738.27,0.00019178,2]
[424717365,1781086246000,-500.0,0.00019178,2]
[424717367,1781086246000,-500.0,0.00019178,2]
[424717369,1781086246000,-500.0,0.00019178,2]
[424717379,1781086246000,-151.0,0.00019178,2]
[424717372,1781086246000,-519.12,0.00019178,2]
[424717370,1781086246000,-485.51970921,0.00019178,2]
[424717374,1781086246000,-500.0,0.00019178,2]
[424717381,1781086246000,-501.52275321,0.00019178,2]
[424717375,1781086246000,-500.0,0.00019178,2]
[424717377,1781086246000,-500.0,0.00019178,2]
[424717383,1781086246000,-151.0,0.00019178,2]
[424717303,1781086246000,-500.0,0.00019178,2]
[424717347,1781086246000,-581.14,0.00019178,2]
[424717345,1781086246000,-500.0,0.00019178,2]
[424717360,1781086246000,-503.38374903,0.00019178,2]
[424717343,1781086246000,-500.0,0.00019178,2]
[424717301,1781086246000,-500.0,0.00019178,2]
[424717356,1781086246000,-500.0,0.00019178,2]
[424717308,1781086246000,-500.0,0.00019178,2]
[424717310,1781086246000,-276.48633236,0.00019178,2]
[424717316,1781086246000,-593.93,0.00019178,2]
[424717314,1781086246000,-500.0,0.00019178,2]
[424717317,1781086246000,-500.0,0.00019178,2]
[424717321,1781086246000,-500.0,0.00019178,2]
[424717319,1781086246000,-503.85852349,0.00019178,2]
[424717332,1781086246000,-500.0,0.00019178,2]
[424717312,1781086246000,-500.0,0.00019178,2]
[424717330,1781086246000,-500.0,0.00019178,2]
[424717323,1781086246000,-500.0,0.00019178,2]
[424717325,1781086246000,-500.0,0.00019178,2]
[424717327,1781086246000,-500.0,0.00019178,2]
[424717328,1781086246000,-500.0,0.00019178,2]
[424717336,1781086246000,-500.0,0.00019178,2]
[424717334,1781086246000,-1003.14056621,0.00019178,2]
[424717338,1781086246000,-500.0,0.00019178,2]
[424717339,1781086246000,-500.0,0.00019178,2]
[424717341,1781086246000,-500.0,0.00019178,2]
[424717448,1781086247000,-500.0,0.00019178,2]
[424717457,1781086247000,-500.0,0.00019178,2]
[424717450,1781086247000,-675.04,0.00019178,2]
[424717444,1781086247000,-1251.98,0.00019178,2]
[424717441,1781086247000,-862.63,0.00019178,2]
[424717456,1781086247000,-386.3443374,0.00019178,2]
[424717443,1781086247000,-1811.15,0.00019178,2]
[424717434,1781086247000,-300.0,0.00019178,2]
[424717452,1781086247000,-3108.39,0.00019178,2]
[424717446,1781086247000,-500.0,0.00019178,2]
[424717454,1781086247000,-500.0,0.00019178,2]
[424717482,1781086247000,-500.0,0.00019178,2]
[424717463,1781086247000,-2669.09,0.00019178,2]
[424717466,1781086247000,-1007.27,0.00019178,2]
[424717475,1781086247000,-4785.46,0.00019178,2]
[424717471,1781086247000,-3159.95,0.00019178,2]